bitfinex-derivatives/quotes_SOLF0:USTF0_20250113
["timestamp","ask_amount","ask_price","bid_price","bid_amount"]
[1736795569361,2.8226,177.22,177.17,2.8232]
[1736795569568,3.4132,177.27,177.15,22.00324182]
[1736795570063,3.4132,177.27,177.15,23.70234182]
[1736795570064,2.8226,177.22,177.15,23.70234182]
[1736795571061,2.8226,177.22,177.17,2.8232]
[1736795571359,3.4132,177.27,177.15,23.70234182]
[1736795571565,25.41644182,177.27,177.15,1.6991]
[1736795572257,0.97057988,177.26,177.15,1.6991]
[1736795572463,22.00324182,177.24,177.13,3.2815]
[1736795573161,22.00324182,177.24,177.09,22.00324182]
[1736795573465,3.4132,177.27,177.05,1.5724]
[1736795573466,22.00324182,177.18,177.05,1.5724]
[1736795573859,3.301,177.17,177.05,1.5724]
[1736795575967,2.8243,177.12,177.07,2.8249]
[1736795576666,2.8244,177.11,177.06,2.8251]
[1736795577062,3.301,177.17,177.06,2.8251]
[1736795577261,2.8245,177.1,177.06,2.8251]
[1736795578765,2.8245,177.1,177.04,3.3674]
[1736795578766,22.00324182,177.15,177.04,1.6721]
[1736795578958,28.32324182,177.15,177.0,22.00324182]
[1736795579364,28.32324182,177.15,177.02,2.8257]
[1736795580166,22.00324182,177.12,177.0,2.8261]
[1736795580666,1.6164,177.11,176.99,11.3603]
[1736795580870,1.6164,177.11,177.0,22.00324182]
[1736795581270,1.6164,177.11,176.99,11.3603]
[1736795581470,1.6164,177.11,177.0,2.826]
[1736795582165,2.8254,177.05,177.0,2.826]
[1736795582673,1.6164,177.11,177.0,2.826]
[1736795582870,2.8255,177.04,177.0,2.826]
[1736795583269,1.6164,177.11,177.0,22.00324182]
[1736795583470,1.7223,177.16,177.03,22.00324182]
[1736795583775,1.7223,177.16,177.08,2.8248]
[1736795583972,2.8243,177.12,177.08,2.8248]
[1736795584170,3.301,177.17,177.08,2.8248]
[1736795585073,2.8245,177.1,177.06,2.825]
[1736795585269,3.301,177.17,177.03,22.00324182]
[1736795585670,2.8242,177.12,177.08,2.8247]
[1736795586071,3.301,177.17,177.08,2.8247]
[1736795586472,3.301,177.17,177.07,2.8249]
[1736795586772,3.301,177.17,177.03,22.00324182]
[1736795586968,2.8246,177.1,177.06,2.825]
[1736795587375,22.00324182,177.15,177.0,22.00324182]
[1736795587571,22.00324182,177.15,177.04,2.8253]
[1736795588074,3.301,177.17,177.0,22.00324182]
[1736795588266,3.301,177.17,177.03,22.00324182]
[1736795588469,22.00324182,177.16,177.0,22.00324182]
[1736795589376,22.00324182,177.16,177.06,2.8251]
[1736795589573,3.301,177.17,177.0,22.00324182]
[1736795589976,3.301,177.17,177.08,2.8248]
[1736795590276,3.301,177.17,177.06,6.32]
[1736795590675,1.7223,177.19,177.06,28.32324182]
[1736795590974,1.7223,177.19,177.07,1.6155]
[1736795591171,2.8236,177.16,177.12,2.8241]
[1736795591771,2.8237,177.15,177.11,2.8243]
[1736795592275,22.00324182,177.19,177.08,3.2228]
[1736795592474,22.00324182,177.19,177.09,2.8246]
[1736795592979,22.00324182,177.19,177.08,3.2228]
[1736795593172,22.00324182,177.19,177.09,2.8243]
[1736795593568,22.00324182,177.19,177.05,6.32]
[1736795593773,22.00324182,177.16,177.05,6.32]
[1736795594170,2.8246,177.08,177.04,2.825]
[1736795594375,22.00324182,177.1,177.01,4.9065]
[1736795594575,22.00324182,177.1,177.01,3.3379]
[1736795594777,2.8251,177.05,177.01,3.3379]
[1736795595474,2.8251,177.05,177.0,2.8257]
[1736795595667,2.8254,177.03,176.99,2.8259]
[1736795595867,5.037,177.09,176.98,4.71151535]
[1736795596070,22.00324182,177.05,176.98,4.71151535]
[1736795596576,22.00324182,177.05,176.95,1.7328]
[1736795596876,2.8263,176.98,176.93,33.09480384]
[1736795597074,22.00324182,177.05,176.92,1.6978]
[1736795597375,2.8266,176.97,176.92,4.525]
[1736795597875,22.00324182,177.05,176.9,38.32070384]
[1736795597876,2.827,176.95,176.9,34.82820384]
[1736795598176,2.827,176.95,176.9,4.5603]
[1736795598571,2.827,176.95,176.87,106.5552]
[1736795598775,2.827,176.95,176.91,2.8275]
[1736795598972,1.6629,177.0,176.87,106.5552]
[1736795599166,22.00324182,176.99,176.87,100.2352]
[1736795599369,1.5949,176.99,176.87,100.2352]
[1736795599678,23.59814182,176.99,176.87,100.2352]
[1736795600178,22.00324182,176.96,176.85,1.645]
[1736795600378,22.00324182,176.96,176.82,15.55017596]
[1736795600584,2.8272,176.93,176.88,2.8279]
[1736795600773,23.59814182,176.99,176.84,22.00324182]
[1736795601080,1.5949,176.99,176.84,22.00324182]
[1736795601281,1.6629,177.0,176.87,22.00324182]
[1736795601774,1.6062,177.04,176.9,22.00324182]
[1736795601984,6.32,177.08,176.93,22.00324182]
[1736795602281,0.97176226,177.07,176.93,22.00324182]
[1736795602776,6.32,177.08,176.98,2.8264]
[1736795604178,22.00324182,177.06,176.96,2.8266]
[1736795604382,22.00324182,177.03,176.91,11.1709]
[1736795604576,22.00324182,177.0,176.91,11.1709]
[1736795604768,2.8266,176.97,176.92,2.8274]
[1736795605176,2.8265,176.98,176.91,7.6784]
[1736795605378,22.00324182,177.0,176.91,7.6784]
[1736795605781,22.00324182,177.0,176.92,2.8274]
[1736795606080,22.00324182,177.0,176.87,28.32324182]
[1736795606282,3.3014,176.99,176.87,6.32]
[1736795606470,2.8272,176.94,176.89,2.8278]
[1736795606678,4.9228,176.99,176.87,6.32]
[1736795606880,22.00324182,176.97,176.87,6.32]
[1736795607079,2.8275,176.92,176.87,6.32]
[1736795607284,22.00324182,176.97,176.85,4.9009]
[1736795607579,22.00324182,176.94,176.76,317.53021778]
[1736795607885,2.8282,176.87,176.83,2.8288]
[1736795608383,2.8284,176.86,176.82,2.8289]
[1736795608585,3.2521,176.9,176.77,11.2159]
[1736795608785,2.8284,176.86,176.81,2.829]
[1736795609579,3.2521,176.9,176.81,2.829]
[1736795609884,3.2521,176.9,176.77,4.8959]
[1736795610080,22.00324182,176.88,176.77,4.8959]
[1736795610379,22.00324182,176.88,176.79,2.8294]
[1736795610584,22.00324182,176.88,176.77,4.8959]
[1736795611085,22.00324182,176.88,176.79,2.8294]
[1736795611385,2.829,176.82,176.77,3.3263]
[1736795611580,2.829,176.82,176.77,1.6151]
[1736795612382,1.6445,176.89,176.77,1.6151]
[1736795612586,1.6445,176.89,176.77,4.8581]
[1736795612884,2.8291,176.82,176.78,2.8296]
[1736795613188,22.00324182,176.85,176.73,61.68044518]
[1736795613381,2.8298,176.77,176.73,61.68044518]
[1736795613677,22.00324182,176.76,176.66,110.1445821]
[1736795613879,22.00324182,176.76,176.66,13.1045821]
[1736795614189,22.00324182,176.76,176.66,6.7845821]
[1736795614387,22.00324182,176.76,176.63,3.2418]
[1736795614388,22.00324182,176.73,176.63,3.2418]
[1736795614687,2.8314,176.68,176.58,13.90327341]
[1736795614881,28.32324182,176.73,176.58,10.84617341]
[1736795615086,2.8317,176.66,176.61,2.8323]
[1736795615284,22.00324182,176.7,176.58,10.84617341]
[1736795615484,22.00324182,176.7,176.58,3.2629]
[1736795616482,22.00324182,176.67,176.57,6.32]
[1736795616684,22.00324182,176.64,176.52,63.36697701]
[1736795616884,2.8326,176.6,176.53,2.8336]
[1736795617187,22.00324182,176.61,176.52,61.75397701]
[1736795617588,22.00324182,176.61,176.54,2.8334]
[1736795617981,2.8325,176.6,176.55,2.8333]
[1736795618189,22.00324182,176.64,176.52,61.75397701]
[1736795618384,22.00324182,176.64,176.5,3.1797]
[1736795618884,2.8323,176.62,176.5,3.1797]
[1736795619281,22.00324182,176.64,176.5,3.1797]
[1736795619486,22.00324182,176.64,176.51,22.00324182]
[1736795619680,22.00324182,176.64,176.5,3.1797]
[1736795619889,2.8325,176.6,176.54,2.8334]
[1736795620088,22.00324182,176.61,176.5,3.1797]
[1736795620480,22.00324182,176.61,176.56,2.833]
[1736795620690,22.00324182,176.64,176.5,3.1797]
[1736795620984,2.8325,176.6,176.5,3.1797]
[1736795621192,22.00324182,176.61,176.5,3.1797]
[1736795622591,22.00324182,176.64,176.5,3.1797]
[1736795623100,2.832,176.63,176.57,2.8329]
[1736795623588,22.00324182,176.64,176.5,25.18294182]
[1736795623792,2.8318,176.65,176.5,25.18294182]
[1736795624085,1.6529,176.66,176.53,22.00324182]
[1736795624485,3.2527,176.69,176.56,22.00324182]
[1736795624682,3.2527,176.69,176.57,8.0053]
[1736795624883,2.8313,176.68,176.57,8.0053]
[1736795625692,2.8313,176.68,176.62,2.832]
[1736795625890,2.8313,176.68,176.57,8.0053]
[1736795626087,22.00324182,176.67,176.57,8.0053]
[1736795626390,22.00324182,176.67,176.58,2.8327]
[1736795626894,1.5731,176.66,176.58,2.8327]
[1736795627190,1.5731,176.66,176.57,6.32]
[1736795627391,1.5731,176.66,176.59,2.8326]
[1736795627584,3.2527,176.69,176.57,6.32]
[1736795627785,2.8312,176.68,176.57,6.32]
[1736795627988,2.8312,176.68,176.63,2.832]
[1736795628189,3.2527,176.69,176.57,6.32]
[1736795628390,2.8318,176.65,176.57,6.32]
[1736795628794,2.8318,176.65,176.6,2.8323]
[1736795629395,2.8318,176.64,176.6,2.8323]
[1736795629594,2.8318,176.64,176.55,6.32]
[1736795629794,22.00324182,176.67,176.55,6.32]
[1736795629996,2.8317,176.65,176.6,2.8324]
[1736795630490,3.2527,176.69,176.64,2.8318]
[1736795630993,2.8316,176.66,176.55,28.32324182]
[1736795631190,3.2527,176.69,176.55,6.32]
[1736795631592,2.8319,176.64,176.55,6.32]
[1736795631791,2.8319,176.64,176.59,2.8326]
[1736795631992,2.8319,176.64,176.55,6.32]
[1736795632993,22.00324182,176.67,176.55,6.32]
[1736795633297,3.2527,176.69,176.55,28.32324182]
[1736795633795,22.00324182,176.67,176.55,6.32]
[1736795634000,22.00324182,176.64,176.51,1.6076]
[1736795634192,2.8325,176.61,176.55,2.8332]
[1736795634391,1.6442,176.63,176.55,2.8332]
[1736795635391,2.8324,176.61,176.55,2.8332]
[1736795635587,22.00324182,176.61,176.53,2.8336]
[1736795635797,22.00324182,176.61,176.51,1.6076]
[1736795635993,22.00324182,176.61,176.5,3.1797]
[1736795636199,1.6081,176.6,176.46,97.06]
[1736795636389,3.2023,176.6,176.47,22.00324182]
[1736795636795,3.2023,176.6,176.52,2.8337]
[1736795637195,2.8332,176.56,176.52,2.8337]
[1736795637494,3.2023,176.6,176.47,28.32324182]
[1736795637800,1.6081,176.6,176.47,28.32324182]
[1736795638189,1.6081,176.6,176.53,2.8335]
[1736795638393,2.8331,176.57,176.47,28.32324182]
[1736795638600,1.6081,176.6,176.51,2.8338]
[1736795638802,1.6081,176.6,176.47,6.32]
[1736795639300,2.8334,176.55,176.51,2.8339]
[1736795639499,22.00324182,176.54,176.42,4.9311]
[1736795639703,2.8341,176.5,176.46,2.8346]
[1736795640100,22.00324182,176.54,176.42,4.9472]
[1736795640400,2.8346,176.47,176.42,4.9472]
[1736795640597,1.6111,176.53,176.42,4.9472]
[1736795641405,2.8341,176.5,176.46,2.8346]
[1736795641709,1.6111,176.53,176.42,4.9472]
[1736795642004,1.6111,176.53,176.45,2.8348]
[1736795642403,1.6111,176.53,176.42,4.9472]
[1736795642601,2.8345,176.48,176.44,2.835]
[1736795642800,22.00324182,176.52,176.42,1.6378]
[1736795643197,1.6033,176.51,176.38,28.35622595]
[1736795643402,1.6033,176.51,176.38,6.35298413]
[1736795644002,22.00324182,176.49,176.38,6.35298413]
[1736795644203,22.00324182,176.49,176.38,4.72738413]
[1736795644906,2.8348,176.46,176.41,2.8354]
[1736795645409,7.9433,176.51,176.38,4.72738413]
[1736795645608,1.728,176.57,176.41,22.00324182]
[1736795645807,6.34,176.6,176.47,22.00324182]
[1736795646009,22.00324182,176.64,176.48,1.6648]
[1736795646214,22.00324182,176.64,176.5,22.00324182]
[1736795646418,22.00324182,176.64,176.51,1.5875]
[1736795646719,2.8323,176.62,176.51,1.5875]
[1736795646921,7.9738,176.65,176.53,22.00324182]
[1736795647109,2.8318,176.65,176.6,2.8323]
[1736795647315,2.8318,176.65,176.52,1.7275]
[1736795647316,22.00324182,176.7,176.56,28.34324182]
[1736795648319,2.8315,176.67,176.62,2.832]
[1736795648519,2.8315,176.67,176.56,28.34324182]
[1736795648813,22.00324182,176.7,176.56,28.34324182]
[1736795648814,2.832,176.63,176.58,2.8327]
[1736795649120,22.00324182,176.67,176.52,1.7275]
[1736795649414,2.8326,176.6,176.54,2.8333]
[1736795649811,22.00324182,176.64,176.52,1.7275]
[1736795650015,2.833,176.57,176.52,4.5613]
[1736795650216,22.00324182,176.61,176.51,6.34]
[1736795650516,22.00324182,176.61,176.48,63.43113209]
[1736795650717,22.00324182,176.61,176.49,2.8341]
[1736795650918,22.00324182,176.61,176.48,63.43113209]
[1736795651320,2.8328,176.58,176.48,1.6648]
[1736795651721,2.8328,176.58,176.53,2.8336]
[1736795652120,2.8328,176.58,176.48,1.6648]
[1736795652121,2.833,176.58,176.48,1.6648]
[1736795652421,22.00324182,176.61,176.48,1.6648]
[1736795652422,22.00324182,176.61,176.51,2.8338]
[1736795652723,22.00324182,176.61,176.48,1.6648]
[1736795652924,22.00324182,176.58,176.48,1.6648]
[1736795653720,2.8337,176.53,176.48,1.6648]
[1736795653920,22.00324182,176.58,176.47,2.8344]
[1736795654323,22.00324182,176.58,176.5,2.8341]
[1736795654723,6.34,176.6,176.47,22.00324182]
[1736795655022,2.833,176.57,176.53,2.8335]
[1736795655213,22.00324182,176.61,176.53,2.8335]
[1736795655418,2.8324,176.61,176.51,6.34]
[1736795655617,3.2425,176.63,176.52,1.6896]
[1736795656217,22.00324182,176.58,176.46,6.34]
[1736795656417,22.00324182,176.58,176.45,3.2484]
[1736795656721,155.7941277,176.73,176.49,213.00324182]
[1736795656916,155.7941277,176.73,176.64,22.00324182]
[1736795657220,155.7941277,176.73,176.7,22.00324182]
[1736795657610,147.9869277,176.73,176.72,2.8306]
[1736795657817,1.7198,176.83,176.7,22.00324182]
[1736795658016,2.8297,176.78,176.72,2.8305]
[1736795658221,1.7198,176.83,176.7,22.00324182]
[1736795658617,1.7198,176.83,176.73,22.00324182]
[1736795658817,1.7198,176.83,176.77,2.8297]
[1736795659523,4.3976,176.85,176.78,2.8296]
[1736795659721,1.569,176.85,176.78,2.8296]
[1736795660023,1.569,176.85,176.77,2.8298]
[1736795660417,1.569,176.85,176.76,35.94574107]
[1736795660623,1.6995,176.89,176.76,35.94574107]
[1736795661120,1.6995,176.89,176.78,2.8295]
[1736795661322,1.6995,176.89,176.76,35.94574107]
[1736795661522,2.829,176.82,176.73,139.56574107]
[1736795661822,35.94574107,176.87,176.73,139.56574107]
[1736795662017,35.94574107,176.87,176.73,97.2]
[1736795662222,35.94574107,176.84,176.73,97.2]
[1736795662527,35.94574107,176.81,176.67,35.94574107]
[1736795662826,35.94574107,176.81,176.67,6.42]
[1736795662827,1.7196,176.8,176.67,6.42]
[1736795663021,1.7196,176.8,176.68,2.8312]
[1736795663423,35.94574107,176.78,176.67,6.42]
[1736795663831,2.8309,176.7,176.64,42.36574107]
[1736795664125,35.94574107,176.75,176.62,2.8322]
[1736795664326,2.8314,176.68,176.62,2.8322]
[1736795664530,35.94574107,176.75,176.61,106.4323]
[1736795664728,35.94574107,176.75,176.61,103.6]
[1736795664929,2.8314,176.67,176.61,103.6]
[1736795666136,2.8314,176.67,176.61,97.18]
[1736795666432,35.94574107,176.72,176.56,6.4]
[1736795666621,35.94574107,176.69,176.56,6.4]
[1736795667028,2.8315,176.67,176.58,35.94574107]
[1736795667224,35.94574107,176.78,176.64,35.94574107]
[1736795667429,2.55762959,176.76,176.64,42.38574107]
[1736795667630,1.584,176.76,176.64,6.44]
[1736795668432,1.584,176.76,176.64,9.2718]
[1736795668932,1.584,176.76,176.64,6.44]
[1736795669236,1.584,176.76,176.65,2.8315]
[1736795669237,2.8308,176.71,176.65,2.8315]
[1736795669633,1.584,176.76,176.65,2.8315]
[1736795670231,1.584,176.76,176.52,1.6441]
[1736795670232,36.91928846,176.75,176.59,6.42]
[1736795670436,35.94574107,176.75,176.59,6.42]
[1736795670730,35.94574107,176.75,176.61,35.94574107]
[1736795670940,1.584,176.76,176.64,35.94574107]
[1736795672032,1.584,176.76,176.66,2.8314]
[1736795672033,2.8307,176.71,176.66,2.8314]
[1736795672238,1.584,176.76,176.62,1.6058]
[1736795672637,1.584,176.76,176.64,35.94574107]
[1736795672938,2.8305,176.73,176.64,35.94574107]
[1736795673541,2.8308,176.71,176.64,35.94574107]
[1736795674436,2.8308,176.71,176.66,2.8314]
[1736795674737,35.94574107,176.75,176.62,3.2369]
[1736795674937,35.94574107,176.75,176.62,6.0689]
[1736795675131,35.94574107,176.75,176.62,1.6311]
[1736795675639,2.8316,176.66,176.62,1.6311]
[1736795676745,35.94574107,176.75,176.62,1.6311]
[1736795677137,35.94574107,176.75,176.64,2.8318]
[1736795677441,35.94574107,176.75,176.62,1.6311]
[1736795677737,35.94574107,176.75,176.64,2.8317]
[1736795677943,1.584,176.76,176.64,35.94574107]
[1736795678331,1.6978,176.81,176.67,35.94574107]
[1736795678532,1.6978,176.81,176.67,42.34574107]
[1736795678736,1.6978,176.81,176.7,35.94574107]
[1736795679142,1.7295,176.83,176.73,35.94574107]
[1736795679644,35.94574107,176.82,176.68,1.5802]
[1736795679936,22.14411881,176.81,176.68,1.5802]
[1736795680239,2.8307,176.72,176.67,6.4]
[1736795680445,22.14411881,176.81,176.67,6.4]
[1736795680743,2.8307,176.71,176.67,6.4]
[1736795681644,1.5755,176.78,176.65,97.16]
[1736795682235,2.8312,176.69,176.65,97.16]
[1736795682441,1.5755,176.78,176.65,99.9916]
[1736795682745,2.8302,176.75,176.65,99.9916]
[1736795683048,1.5755,176.78,176.65,99.9916]
[1736795683236,2.831,176.7,176.65,99.9916]
[1736795683441,35.99179166,176.73,176.6,1.7168]
[1736795683643,1.601,176.72,176.6,1.7168]
[1736795683940,1.601,176.72,176.63,2.832]
[1736795684145,1.601,176.72,176.6,1.7168]
[1736795684644,1.601,176.72,176.61,35.99179166]
[1736795684842,1.5755,176.78,176.64,35.99179166]
[1736795685144,3.1765,176.78,176.64,35.99179166]
[1736795686141,2.831,176.69,176.65,2.8317]
[1736795686735,6.4,176.72,176.6,1.7168]
[1736795686936,35.99179166,176.73,176.6,1.7168]
[1736795687540,35.99179166,176.7,176.6,1.7168]
[1736795687747,35.99179166,176.7,176.55,9.662]
[1736795687943,2.832,176.64,176.6,2.8325]
[1736795688245,1.5948,176.69,176.57,35.99179166]
[1736795688642,2.832,176.63,176.59,2.8325]
[1736795689748,1.5948,176.69,176.57,35.99179166]
[1736795689938,1.5948,176.69,176.55,9.662]
[1736795690138,2.8328,176.59,176.55,1.6705]
[1736795690347,35.99179166,176.67,176.52,8.0527]
[1736795690647,1.7227,176.68,176.52,1.6527]
[1736795690648,2.8333,176.55,176.52,1.6527]
[1736795690848,35.99179166,176.64,176.52,1.6527]
[1736795691143,35.99179166,176.64,176.51,97.16]
[1736795691349,35.99179166,176.61,176.5,61.75602043]
[1736795691550,35.99179166,176.58,176.5,61.75602043]
[1736795691850,2.8339,176.51,176.46,1.7065]
[1736795692042,35.99179166,176.58,176.46,1.7065]
[1736795692545,35.99179166,176.58,176.47,2.8345]
[1736795692747,1.6256,176.59,176.46,37.69829166]
[1736795692947,2.8331,176.56,176.52,2.8338]
[1736795693148,1.587,176.6,176.49,35.99179166]
[1736795693746,42.37179166,176.64,176.49,35.99179166]
[1736795693946,6.38,176.64,176.52,35.99179166]
[1736795694846,2.8328,176.59,176.55,2.8331]
[1736795695155,6.38,176.64,176.52,35.99179166]
[1736795695449,42.37179166,176.64,176.49,35.99179166]
[1736795695649,42.37179166,176.64,176.49,42.37179166]
[1736795696048,1.6303,176.65,176.52,35.99179166]
[1736795696251,35.99179166,176.7,176.56,35.99179166]
[1736795696546,35.99179166,176.7,176.58,2.8328]
[1736795696750,35.99179166,176.64,176.5,6.4]
[1736795696954,1.6797,176.63,176.5,6.4]
[1736795697149,2.8333,176.56,176.51,2.8339]
[1736795697344,2.8333,176.56,176.5,6.4]
[1736795697345,1.6797,176.63,176.5,6.4]
[1736795697554,1.6797,176.63,176.51,35.99179166]
[1736795697749,1.6797,176.63,176.54,2.8333]
[1736795697949,1.6797,176.63,176.51,35.99179166]
[1736795698149,1.6797,176.63,176.5,6.4]
[1736795698848,1.6797,176.63,176.51,35.99179166]
[1736795699255,37.56009166,176.67,176.54,35.99179166]
[1736795699452,37.56009166,176.67,176.51,35.99179166]
[1736795699850,37.56009166,176.67,176.47,194.3769]
[1736795699851,35.99179166,176.64,176.48,35.99179166]
[1736795700253,37.56009166,176.67,176.48,35.99179166]
[1736795700254,35.99179166,176.61,176.48,35.99179166]
[1736795700555,1.727,176.6,176.48,35.99179166]
[1736795700955,6.4,176.62,176.48,35.99179166]
[1736795701155,6.4,176.62,176.51,35.99179166]
[1736795701350,22.18356549,176.65,176.5,22.18356549]
[1736795701550,1.727,176.66,176.47,31.96046549]
[1736795701551,22.18356549,176.62,176.47,31.96046549]
[1736795702357,2.8334,176.55,176.5,2.834]
[1736795702963,2.8335,176.54,176.5,2.834]
[1736795703155,22.18356549,176.62,176.52,2.8337]
[1736795703351,1.727,176.66,176.5,22.18356549]
[1736795703352,22.18356549,176.65,176.5,22.18356549]
[1736795703557,2.8322,176.62,176.53,22.18356549]
[1736795703756,1.727,176.66,176.53,22.18356549]
[1736795703958,2.8327,176.59,176.54,6.4]
[1736795704256,1.727,176.66,176.5,22.18356549]
[1736795704257,6.4,176.64,176.5,22.18356549]
[1736795704463,2.8341,176.5,176.44,22.18356549]
[1736795704652,22.18356549,176.56,176.43,30.33309365]
[1736795704848,3.3106,176.55,176.44,2.835]
[1736795705053,2.8347,176.46,176.43,30.33309365]
[1736795705257,22.18356549,176.53,176.43,30.33309365]
[1736795705453,22.18356549,176.5,176.38,256.79783945]
[1736795705658,22.18356549,176.5,176.38,61.79717684]
[1736795705858,28.58356549,176.5,176.38,61.79717684]
[1736795706155,2.8347,176.47,176.38,61.79717684]
[1736795706361,28.58356549,176.5,176.38,61.79717684]
[1736795706759,2.8354,176.42,176.38,61.79717684]
[1736795707866,2.8358,176.4,176.32,1.6077]
[1736795708166,36.11524311,176.45,176.33,2.8368]
[1736795708357,36.11524311,176.42,176.3,6.4]
[1736795708762,6.4,176.43,176.3,42.51524311]
[1736795709369,36.11524311,176.39,176.28,1.6102]
[1736795709672,36.11524311,176.36,176.23,8.0264]
[1736795709873,36.11524311,176.36,176.24,2.8381]
[1736795710269,36.11524311,176.36,176.26,2.8379]
[1736795710574,1.5631,176.39,176.23,8.0264]
[1736795710771,1.5631,176.39,176.24,2.8382]
[1736795710975,36.11524311,176.35,176.24,2.8382]
[1736795711171,2.8374,176.3,176.24,2.8382]
[1736795711375,36.11524311,176.32,176.22,9.2784]
[1736795711574,36.11524311,176.32,176.22,2.8384]
[1736795711779,1.5631,176.31,176.22,2.8384]
[1736795712078,36.11524311,176.26,176.14,1.5985]
[1736795712276,2.8388,176.22,176.15,2.8396]
[1736795712471,36.11524311,176.26,176.14,1.5985]
[1736795713477,2.8395,176.17,176.11,100.6616]
[1736795713672,36.11524311,176.23,176.11,100.6616]
[1736795713974,1.6052,176.22,176.11,100.6616]
[1736795714179,1.6052,176.22,176.11,97.28]
[1736795714180,36.11524311,176.2,176.11,97.28]
[1736795714375,36.11524311,176.2,176.08,6.44]
[1736795714576,36.11524311,176.2,176.06,1.5949]
[1736795714773,36.11524311,176.2,176.06,8.0349]
[1736795715774,36.11524311,176.2,176.08,2.8408]
[1736795716279,2.8399,176.14,176.08,2.8408]
[1736795716979,2.8397,176.16,176.1,2.8405]
[1736795717175,36.11524311,176.2,176.1,2.8405]
[1736795717370,36.11524311,176.2,176.06,8.0349]
[1736795717371,2.8395,176.17,176.06,8.0349]
[1736795717576,36.11524311,176.2,176.06,8.0349]
[1736795717773,36.11524311,176.2,176.06,1.5949]
[1736795718076,36.11524311,176.17,176.05,11.32531496]
[1736795718679,47.48194311,176.22,176.09,2.8407]
[1736795718879,47.48194311,176.22,176.05,8.48411496]
[1736795719081,36.11524311,176.17,176.05,6.80721496]
[1736795719381,2.8404,176.11,176.05,9.64841496]
[1736795719577,36.11524311,176.14,176.01,133.43524311]
[1736795719775,2.8404,176.11,176.05,2.8413]
[1736795720175,1.6232,176.13,176.01,139.87524311]
[1736795720380,1.6232,176.13,176.01,103.76]
[1736795720583,1.6232,176.13,176.01,97.32]
[1736795720882,1.6232,176.13,176.02,2.8418]
[1736795722081,2.8409,176.08,176.02,2.8418]
[1736795722782,4.4634,176.13,176.07,2.8409]
[1736795722982,36.11524311,176.17,176.04,36.11524311]
[1736795723181,36.11524311,176.17,176.01,133.43524311]
[1736795723377,2.8402,176.12,176.06,2.841]
[1736795723978,2.8404,176.11,176.01,133.43524311]
[1736795724482,36.11524311,176.14,176.04,2.8415]
[1736795724679,1.5927,176.13,176.04,2.8415]
[1736795725476,1.5927,176.13,176.03,2.8417]
[1736795725681,1.5927,176.13,176.01,97.32]
[1736795725881,36.11524311,176.11,176.01,97.32]
[1736795726083,2.8409,176.08,176.01,97.32]
[1736795727085,2.8409,176.08,176.03,2.8417]
[1736795727483,1.5927,176.13,176.01,97.32]
[1736795727676,1.5927,176.13,176.06,2.8411]
[1736795727988,2.8404,176.11,176.01,97.32]
[1736795728187,1.5927,176.13,176.08,2.8408]
[1736795728386,1.5927,176.13,176.01,133.43524311]
[1736795728587,2.8404,176.11,176.01,133.43524311]
[1736795728888,2.8404,176.11,176.06,2.841]
[1736795729283,1.5927,176.13,176.01,133.43524311]
[1736795729284,36.11524311,176.17,176.07,2.841]
[1736795729584,2.8398,176.15,176.03,22.30020954]
[1736795729885,2.8403,176.12,176.04,6.4]
[1736795730084,22.30020954,176.15,176.04,6.4]
[1736795730286,22.30020954,176.12,176.01,103.72]
[1736795730788,2.8409,176.08,176.01,103.72]
[1736795731089,22.30020954,176.09,175.96,1.6653]
[1736795731279,28.70020954,176.12,175.96,8.0653]
[1736795731280,22.30020954,176.06,175.96,8.0653]
[1736795731786,2.8415,176.04,175.99,2.8422]
[1736795731990,22.30020954,176.06,175.96,1.6653]
[1736795732188,2.8417,176.03,175.98,2.8423]